[Event "Biel Master Tournament 2019"]
[Site "Biel"]
[Date "2019.07.28"]
[Round "6.14"]
[White "Shchekachev, Andrei"]
[Black "Sukandar, Irine Kharisma"]
[Result "1-0"]
[ECO "D39"]
[WhiteElo "2531"]
[BlackElo "2396"]
[Annotator "ChessBase"]
[PlyCount "85"]
[EventDate "2019.07.20"]
[EventType "swiss"]
[EventCountry "SUI"]
[SourceTitle "playchess.com"]
[Source "ChessBase"]
[SourceQuality "1"]
[TimeControl "40/5400+30:1800+30"]

1. Nf3 {[%emt 0:00:00]} Nf6 {[%emt 0:00:18]} 2. c4 {[%emt 0:00:00]} e6 {[%emt 0:00:41]} 3. Nc3 {[%emt 0:00:17]} d5 {[%emt 0:00:32]} 4. d4 {[%emt 0:00:15]} dxc4 {[%emt 0:00:57]} 5. Bg5 {[%emt 0:01:44]} Bb4 {[%emt 0:00:37]} 6. e4 {[%emt 0:00:37]} b5 {[%emt 0:00:24]} 7. a4 {[%emt 0:00:54]} c5 {[%emt 0:00:25]} 8. axb5 {[%emt 0:00:32]} cxd4 {[%emt 0:00:38]} 9. Nxd4 {[%emt 0:00:10]} h6 {[%emt 0:03:19]} 10. Be3 {[%emt 0:02:17]} Nxe4 {[%emt 0:13:21]} 11. Qc2 {[%emt 0:02:01]} Bb7 {[%emt 0:01:10]} 12. Bxc4 {[%emt 0:20:23]} O-O {[%emt 0:09:09]} 13. O-O {[%emt 0:04:42]} Nxc3 {[%emt 0:00:43]} 14. bxc3 {[%emt 0:00:37]} Bd6 {[%emt 0:00:39]} 15. Be2 {[%emt 0:08:13]} Qc7 {[%emt 0:04:01]} 16. h3 {[%emt 0:26:57]} Nd7 {[%emt 0:02:58]} 17. Nb3 {[%emt 0:09:56]} Nc5 {[%emt 0:11:37]} 18. Nxc5 {[%emt 0:00:28]} Bxc5 {[%emt 0:00:05]} 19. Bxc5 {[%emt 0:00:10]} Qxc5 {[%emt 0:00:02]} 20. Rfd1 {[%emt 0:01:12]} Rfd8 {[%emt 0:04:37]} 21. Qb3 {[%emt 0:01:55]} g6 {[%emt 0:08:45]} 22. Bf1 {[%emt 0:11:15]} Rd5 {[%emt 0:02:35]} 23. c4 {[%emt 0:02:48]} Rxd1 {[%emt 0:02:56]} 24. Rxd1 {[%emt 0:00:58]} a6 {[%emt 0:00:59]} 25. Ra1 {[%emt 0:02:43]} Qe5 {[%emt 0:05:04]} 26. Qb1 {[%emt 0:00:57]} Rb8 {[%emt 0:00:51]} 27. Ra3 {[%emt 0:00:51]} axb5 {[%emt 0:01:18]} 28. cxb5 {[%emt 0:00:01]} Bd5 {[%emt 0:01:01]} 29. Qc1 {[%emt 0:00:32]} h5 {[%emt 0:05:43]} 30. Rc3 {[%emt 0:00:16]} Kg7 {[%emt 0:01:18]} 31. Rc8 {[%emt 0:01:17]} Rxc8 {[%emt 0:04:34]} 32. Qxc8 {[%emt 0:00:02]} Qb2 {[%emt 0:00:17]} 33. Qc7 {[%emt 0:00:41]} Qb1 {[%emt 0:03:15]} 34. Qc5 {[%emt 0:00:41]} Kg8 {[%emt 0:00:56]} 35. Qd4 {[%emt 0:00:26]} Kf8 {[%emt 0:01:04]} 36. Qc5+ {[%emt 0:00:26]} Kg8 {[%emt 0:01:19]} 37. Qd4 {[%emt 0:00:09]} Kf8 {[%emt 0:00:15]} 38. h4 {[%emt 0:00:06]} Ke8 {[%emt 0:00:39]} 39. Qc5 {[%emt 0:00:54]} Qe4 {[%emt 0:06:32]} 40. b6 {[%emt 0:00:47]} Bc6 {[%emt 0:03:19]} 41. b7 {[%emt 0:02:06]} Bxb7 {[%emt 0:00:53]} 42. Bb5+ {[%emt 0:00:08]} Kd8 {[%emt 0:00:13]} 43. Qd6+ {[%emt 0:00:08]} 1-0

[Event "Biel Master Tournament 2019"]
[Site "Biel"]
[Date "2019.07.28"]
[Round "6.15"]
[White "Gukesh D"]
[Black "Wong, Jianwen"]
[Result "1-0"]
[ECO "B31"]
[WhiteElo "2520"]
[BlackElo "2301"]
[Annotator "ChessBase"]
[PlyCount "75"]
[EventDate "2019.07.20"]
[EventType "swiss"]
[EventCountry "SUI"]
[SourceTitle "playchess.com"]
[Source "ChessBase"]
[SourceQuality "1"]
[TimeControl "40/5400+30:1800+30"]

1. e4 {[%emt 0:00:00]} c5 {[%emt 0:01:37]} 2. Nf3 {[%emt 0:00:21]} Nc6 {[%emt 0:00:04]} 3. Bb5 {[%emt 0:00:00]} g6 {[%emt 0:00:59]} 4. Bxc6 {[%emt 0:00:44]} dxc6 {[%emt 0:00:00]} 5. d3 {[%emt 0:00:19]} Bg7 {[%emt 0:02:33]} 6. h3 {[%emt 0:02:20]} Nf6 {[%emt 0:00:00]} 7. Nc3 {[%emt 0:00:12]} Nd7 {[%emt 0:00:00]} 8. Be3 {[%emt 0:00:08]} e5 {[%emt 0:00:00]} 9. Qc1 {[%emt 0:01:11]} h6 {[%emt 0:00:00]} 10. O-O {[%emt 0:01:05]} b6 {[%emt 0:05:59]} 11. a3 {[%emt 0:00:48]} Nf8 {[%emt 0:05:44]} 12. b4 {[%emt 0:02:34]} Ne6 {[%emt 0:05:16]} 13. bxc5 {[%emt 0:01:34]} bxc5 {[%emt 0:17:24]} 14. Na4 {[%emt 0:10:08]} Qa5 {[%emt 0:10:28]} 15. Nb2 {[%emt 0:02:11]} Qc7 {[%emt 0:00:46]} 16. Nd2 {[%emt 0:06:52]} f5 {[%emt 0:06:26]} 17. f3 {[%emt 0:14:22]} f4 {[%emt 0:03:00]} 18. Bf2 {[%emt 0:00:06]} g5 {[%emt 0:00:03]} 19. Na4 {[%emt 0:04:03]} Qa5 {[%emt 0:02:36]} 20. Nxc5 {[%emt 0:01:10]} h5 {[%emt 0:07:42]} 21. Rb1 {[%emt 0:16:45]} Bf8 {[%emt 0:06:17]} 22. Nc4 {[%emt 0:04:43]} Qc7 {[%emt 0:05:42]} 23. Rb7 {[%emt 0:04:35]} Bxb7 {[%emt 0:02:54]} 24. Nxe6 {[%emt 0:00:04]} Qe7 {[%emt 0:01:25]} 25. Nxf8 {[%emt 0:00:46]} Kxf8 {[%emt 0:00:58]} 26. Qb2 {[%emt 0:00:37]} Re8 {[%emt 0:02:22]} 27. Nxe5 {[%emt 0:03:10]} Qxe5 {[%emt 0:00:14]} 28. Bd4 {[%emt 0:00:24]} Qb5 {[%emt 0:00:42]} 29. Bxh8 {[%emt 0:00:39]} Qxb2 {[%emt 0:00:24]} 30. Bxb2 {[%emt 0:00:03]} Kf7 {[%emt 0:02:27]} 31. Bd4 {[%emt 0:01:02]} Ra8 {[%emt 0:00:40]} 32. Rb1 {[%emt 0:00:12]} Bc8 {[%emt 0:00:18]} 33. Bc5 {[%emt 0:03:28]} a5 {[%emt 0:02:06]} 34. Rb6 {[%emt 0:00:21]} Bd7 {[%emt 0:00:06]} 35. Rb7 {[%emt 0:00:30]} Ke6 {[%emt 0:00:19]} 36. d4 {[%emt 0:00:22]} Rg8 {[%emt 0:01:11]} 37. c4 {[%emt 0:01:36]} Bc8 {[%emt 0:01:39]} 38. Rc7 {[%emt 0:00:15] Kd5} 1-0

[Event "Biel Master Tournament 2019"]
[Site "Biel"]
[Date "2019.07.28"]
[Round "6.16"]
[White "Tania, Sachdev"]
[Black "Shyam, Sundar M."]
[Result "0-1"]
[ECO "A21"]
[WhiteElo "2401"]
[BlackElo "2520"]
[Annotator "ChessBase"]
[PlyCount "78"]
[EventDate "2019.07.20"]
[EventType "swiss"]
[EventCountry "SUI"]
[SourceTitle "playchess.com"]
[Source "ChessBase"]
[SourceQuality "1"]
[TimeControl "40/5400+30:1800+30"]

1. d4 {[%emt 0:01:54]} d6 {[%emt 0:00:00]} 2. c4 {[%emt 0:00:05]} e5 {[%emt 0:00:00]} 3. Nc3 {[%emt 0:00:10]} exd4 {[%emt 0:00:00]} 4. Qxd4 {[%emt 0:00:02]} Nc6 {[%emt 0:00:00]} 5. Qd2 {[%emt 0:00:13]} Nf6 {[%emt 0:00:12]} 6. b3 {[%emt 0:01:18]} Be6 {[%emt 0:00:17]} 7. e4 {[%emt 0:00:18]} a5 {[%emt 0:00:05]} 8. Bb2 {[%emt 0:00:44]} a4 {[%emt 0:00:08]} 9. Rd1 {[%emt 0:00:05]} axb3 {[%emt 0:00:10]} 10. axb3 {[%emt 0:00:05]} g6 {[%emt 0:00:03]} 11. Bd3 {[%emt 0:00:09]} Bg7 {[%emt 0:00:05]} 12. Nge2 {[%emt 0:00:28]} Nd7 {[%emt 0:00:06]} 13. Nd5 {[%emt 0:16:08]} Nce5 {[%emt 0:00:42]} 14. Bb1 {[%emt 0:02:02]} Nc5 {[%emt 0:17:57]} 15. Nd4 {[%emt 0:03:47]} O-O {[%emt 0:15:55]} 16. Bc3 {[%emt 0:25:27]} c6 {[%emt 0:36:46]} 17. Ne3 {[%emt 0:01:11]} Qg5 {[%emt 0:00:36]} 18. Qe2 {[%emt 0:39:34]} f5 {[%emt 0:12:25]} 19. b4 {[%emt 0:02:19]} f4 {[%emt 0:00:05]} 20. bxc5 {[%emt 0:00:43]} fxe3 {[%emt 0:00:02]} 21. f4 {[%emt 0:01:52]} Qxf4 {[%emt 0:09:48]} 22. Nxe6 {[%emt 0:00:18]} Qh4+ {[%emt 0:02:40]} 23. g3 {[%emt 0:00:02]} Qh3 {[%emt 0:02:16]} 24. Ng5 {[%emt 0:02:20]} Qh6 {[%emt 0:01:05]} 25. Bxe5 {[%emt 0:00:45]} Bxe5 {[%emt 0:00:25]} 26. Qg4 {[%emt 0:00:01]} Rf2 {[%emt 0:00:28]} 27. Rd3 {[%emt 0:00:49]} Qf8 {[%emt 0:00:36]} 28. Qe6+ {[%emt 0:00:23]} Kh8 {[%emt 0:00:19]} 29. Qd7 {[%emt 0:00:40]} Bg7 {[%emt 0:00:14]} 30. Ne6 {[%emt 0:00:31]} Ra1 {[%emt 0:00:01]} 31. Qxg7+ {[%emt 0:00:18]} Qxg7 {[%emt 0:00:01]} 32. Nxg7 {[%emt 0:00:01]} Rxb1+ {[%emt 0:00:07]} 33. Rd1 {[%emt 0:00:02]} Rbb2 {[%emt 0:00:43]} 34. Rxd6 {[%emt 0:00:18]} Kxg7 {[%emt 0:00:33]} 35. e5 {[%emt 0:01:28]} Kf7 {[%emt 0:00:10]} 36. Rd3 {[%emt 0:00:40]} Rbe2+ {[%emt 0:01:01]} 37. Kd1 {[%emt 0:00:02]} Ke6 {[%emt 0:01:09]} 38. Re1 {[%emt 0:01:14]} Ra2 {[%emt 0:00:26]} 39. Rd6+ {[%emt 0:00:04]} Kxe5 {[%emt 0:00:30]} 0-1

[Event "Biel Master Tournament 2019"]
[Site "Biel"]
[Date "2019.07.28"]
[Round "6.17"]
[White "Martirosyan, Haik M."]
[Black "Low, Zhen Yu Cyrus"]
[Result "1-0"]
[ECO "D70"]
[WhiteElo "2619"]
[BlackElo "2155"]
[Annotator "RC"]
[PlyCount "83"]
[EventDate "2019.07.20"]
[EventType "swiss"]
[EventCountry "SUI"]
[SourceTitle "playchess.com"]
[Source "ChessBase"]
[SourceQuality "1"]
[TimeControl "40/5400+30:1800+30"]

1. d4 {[%emt 0:01:11]} Nf6 {[%emt 0:00:00]} 2. c4 {[%emt 0:00:09]} g6 {[%emt 0:00:00]} 3. f3 {[%emt 0:00:07]} d5 {[%emt 0:00:03]} 4. cxd5 {[%emt 0:00:07]} Nxd5 {[%emt 0:00:04]} 5. e4 {[%emt 0:00:06]} Nb6 {[%emt 0:00:05]} 6. Nc3 {[%emt 0:00:05]} Bg7 {[%emt 0:00:06]} 7. Be3 {[%emt 0:00:05]} O-O {[%emt 0:00:06]} 8. Qd2 {[%emt 0:00:06]} Nc6 {[%emt 0:00:05]} 9. O-O-O {[%emt 0:00:06]} f5 {[%emt 0:00:05]} 10. h4 {[%emt 0:04:18]} fxe4 {[%emt 0:07:34]} 11. h5 {[%emt 0:00:09]} gxh5 {[%emt 0:09:07]} 12. Rxh5 {[%emt 0:00:33]} Bf5 {[%emt 0:00:24]} 13. Rg5 {[%emt 0:00:53]} Bg6 {[%emt 0:03:16]} 14. Be2 {[%emt 0:13:33]} Qe8 {[%emt 0:19:29]} 15. fxe4 {[%emt 0:09:16]} Rd8 {[%emt 0:00:43]} 16. d5 {[%emt 0:08:03]} Ne5 {[%emt 0:02:44]} 17. Bd4 {[%emt 0:21:24]} Nbc4 {[%emt 0:06:25]} 18. Qe1 {[%emt 0:01:20]} Bh6 {[%emt 0:00:25]} 19. Qh4 {[%emt 0:01:36]} Nf7 {[%emt 0:00:57]} 20. Nh3 {[%emt 0:01:20]} e5 {[%emt 0:05:45]} 21. Bc5 {[%emt 0:01:38]} Ncd6 {[%emt 0:01:11]} 22. Bg4 {[%emt 0:03:01]} b6 {[%emt 0:07:07]} 23. Be3 {[%emt 0:04:37]} Bxg5 {[%emt 0:01:07]} 24. Nxg5 {[%emt 0:01:20]} Qe7 {[%emt 0:01:56]} 25. Be6 {[%emt 0:01:15]} Rde8 {[%emt 0:14:47]} 26. Rh1 {[%emt 0:03:24]} Kh8 {[%emt 0:03:38]} 27. g4 {[%emt 0:17:38]} Nd8 {[%emt 0:12:05]} 28. Bf5 {[%emt 0:01:34]} Rg8 {[%emt 0:00:41]} 29. Qh6 {[%emt 0:02:07]} Qg7 {[%emt 0:00:57]} 30. Qh2 {[%emt 0:00:10]} Re7 {[%emt 0:01:22]} 31. b3 {[%emt 0:01:07]} Rf8 {[%emt 0:02:14]} 32. Qh4 {[%emt 0:01:23]} Kg8 {[%emt 0:00:46]} 33. Ne6 {[%emt 0:00:33]} Nxe6 {[%emt 0:00:16]} 34. dxe6 {[%emt 0:00:02]} Rfe8 {[%emt 0:00:59]} 35. Bh6 {[%emt 0:00:24]} Qh8 36. Rf1 {[%emt 0:00:37]} c6 {[%emt 0:00:38]} 37. Qg5 {[%emt 0:00:37]} Rg7 {[%emt 0:00:17]} 38. Qf6 {[%emt 0:02:10]} Rge7 {[%emt 0:00:27]} 39. Qg5 {[%emt 0:00:45]} Rg7 {[%emt 0:00:01]} 40. Qd2 {[%emt 0:00:29]} Nb7 {[%emt 0:00:46]} 41. Bxg6 {[%emt 0:05:08]} hxg6 {[%emt 0:01:11]} 42. Bxg7 {[%emt 0:00:14]} 1-0

[Event "Biel Master Tournament 2019"]
[Site "Biel"]
[Date "2019.07.28"]
[Round "6.18"]
[White "Akash G"]
[Black "Antipov, Mikhail Al."]
[Result "1-0"]
[ECO "B90"]
[WhiteElo "2394"]
[BlackElo "2582"]
[Annotator "ChessBase"]
[PlyCount "57"]
[EventDate "2019.07.20"]
[EventType "swiss"]
[EventCountry "SUI"]
[SourceTitle "playchess.com"]
[Source "ChessBase"]
[SourceQuality "1"]
[TimeControl "40/5400+30:1800+30"]

1. e4 {[%emt 0:00:00]} c5 {[%emt 0:00:00]} 2. Nf3 {[%emt 0:00:00]} d6 {[%emt 0:00:00]} 3. d4 {[%emt 0:00:00]} cxd4 {[%emt 0:00:00]} 4. Nxd4 {[%emt 0:00:05]} Nf6 {[%emt 0:00:00]} 5. Nc3 {[%emt 0:00:10]} a6 {[%emt 0:00:00]} 6. Be3 {[%emt 0:01:04]} e5 {[%emt 0:00:00]} 7. Nb3 {[%emt 0:00:05]} Be6 {[%emt 0:00:03]} 8. h3 {[%emt 0:00:18]} Nbd7 {[%emt 0:04:01]} 9. g4 {[%emt 0:03:47]} g6 {[%emt 0:07:55]} 10. Qd2 {[%emt 0:16:21]} b5 {[%emt 0:15:26]} 11. Bg2 {[%emt 0:03:24]} Nb6 {[%emt 0:04:20]} 12. Na5 {[%emt 0:03:16]} Qc7 {[%emt 0:24:53]} 13. f4 {[%emt 0:11:10]} Na4 {[%emt 0:16:14]} 14. Nxa4 {[%emt 0:08:16]} bxa4 {[%emt 0:00:01]} 15. O-O {[%emt 0:05:06]} Be7 {[%emt 0:01:11]} 16. f5 {[%emt 0:03:04]} Bd7 {[%emt 0:00:31]} 17. b4 {[%emt 0:02:05]} Rb8 {[%emt 0:02:11]} 18. a3 {[%emt 0:04:01]} Bc6 {[%emt 0:08:51]} 19. Qd3 {[%emt 0:03:26]} Rc8 {[%emt 0:04:59]} 20. c4 {[%emt 0:06:47]} gxf5 {[%emt 0:04:39]} 21. Rxf5 {[%emt 0:01:06]} Bd7 {[%emt 0:00:04]} 22. Raf1 {[%emt 0:04:22]} Bxf5 {[%emt 0:00:31]} 23. exf5 {[%emt 0:03:08]} d5 {[%emt 0:00:48]} 24. g5 {[%emt 0:06:51]} e4 {[%emt 0:02:32]} 25. Qd4 {[%emt 0:02:39]} Rg8 {[%emt 0:00:05]} 26. gxf6 {[%emt 0:06:11]} Qg3 {[%emt 0:00:05]} 27. Rf2 {[%emt 0:00:33]} Bd6 {[%emt 0:00:05]} 28. Qxd5 {[%emt 0:00:40]} Qxh3 {[%emt 0:02:49]} 29. Qxd6 {[%emt 0:02:04]} 1-0

[Event "Biel Master Tournament 2019"]
[Site "Biel"]
[Date "2019.07.28"]
[Round "6.19"]
[White "Bellahcene, Bilel"]
[Black "Karavade, Eesha"]
[Result "1/2-1/2"]
[ECO "E04"]
[WhiteElo "2541"]
[BlackElo "2355"]
[Annotator "ChessBase"]
[PlyCount "121"]
[EventDate "2019.07.20"]
[EventType "swiss"]
[EventCountry "SUI"]
[SourceTitle "playchess.com"]
[Source "ChessBase"]
[SourceQuality "1"]
[TimeControl "40/5400+30:1800+30"]

1. d4 {[%emt 0:09:00]} Nf6 {[%emt 0:00:00]} 2. c4 {[%emt 0:00:14]} e6 {[%emt 0:00:04]} 3. Nf3 {[%emt 0:00:04]} d5 {[%emt 0:00:29]} 4. g3 {[%emt 0:00:03]} dxc4 {[%emt 0:00:42]} 5. Bg2 {[%emt 0:00:06]} c5 {[%emt 0:00:19]} 6. O-O {[%emt 0:01:00]} Nc6 {[%emt 0:05:37]} 7. dxc5 {[%emt 0:00:04]} Qxd1 {[%emt 0:00:49]} 8. Rxd1 {[%emt 0:00:03]} Bxc5 {[%emt 0:00:07]} 9. Nbd2 {[%emt 0:00:02]} c3 {[%emt 0:00:11]} 10. bxc3 {[%emt 0:00:03]} O-O {[%emt 0:00:13]} 11. Nb3 {[%emt 0:00:01]} Be7 {[%emt 0:00:11]} 12. Nfd4 {[%emt 0:00:14]} Bd7 {[%emt 0:01:00]} 13. Nb5 {[%emt 0:05:27]} Ne5 {[%emt 0:14:36]} 14. N3d4 {[%emt 0:10:44]} a6 {[%emt 0:07:23]} 15. Ba3 {[%emt 0:01:15]} Bxa3 {[%emt 0:02:07]} 16. Nxa3 {[%emt 0:00:01]} Rac8 {[%emt 0:00:10]} 17. Bxb7 {[%emt 0:14:11]} Rxc3 {[%emt 0:00:08]} 18. Nb1 {[%emt 0:02:44]} Rc5 {[%emt 0:14:26]} 19. Bxa6 {[%emt 0:04:07]} Ba4 {[%emt 0:00:08]} 20. Re1 {[%emt 0:03:53]} Ra8 {[%emt 0:04:27]} 21. Bb7 {[%emt 0:05:22]} Rd8 {[%emt 0:03:40]} 22. e3 {[%emt 0:05:48]} Nd3 {[%emt 0:04:45]} 23. Rf1 {[%emt 0:02:11]} e5 {[%emt 0:08:56]} 24. Ne2 {[%emt 0:03:15]} Rb8 {[%emt 0:04:45]} 25. Nbc3 {[%emt 0:02:37]} Bc2 {[%emt 0:00:07]} 26. Bg2 {[%emt 0:01:50]} Ra5 {[%emt 0:06:17]} 27. a4 {[%emt 0:00:20]} Nc5 {[%emt 0:00:12]} 28. Ra2 {[%emt 0:05:45]} Bd3 {[%emt 0:00:08]} 29. Rfa1 {[%emt 0:01:07]} g6 {[%emt 0:10:28]} 30. h3 {[%emt 0:01:15]} Bc4 {[%emt 0:00:16]} 31. Ra3 {[%emt 0:07:17]} Rb2 {[%emt 0:00:36]} 32. Bf1 {[%emt 0:03:19]} Nfe4 {[%emt 0:04:51]} 33. Nd1 {[%emt 0:07:10]} Rxe2 {[%emt 0:03:03]} 34. Bxe2 {[%emt 0:00:06]} Bxe2 {[%emt 0:00:04]} 35. Nb2 {[%emt 0:00:41]} Kf8 {[%emt 0:00:56]} 36. Re1 {[%emt 0:01:45]} Ba6 {[%emt 0:00:11]} 37. Kg2 {[%emt 0:01:47]} Ke7 {[%emt 0:00:06]} 38. f3 {[%emt 0:00:14]} Nd6 {[%emt 0:00:37]} 39. Rc1 {[%emt 0:00:53]} e4 {[%emt 0:00:38]} 40. f4 {[%emt 0:01:30]} Ke6 {[%emt 0:01:04]} 41. Rb1 {[%emt 0:08:30]} Nd3 {[%emt 0:02:47]} 42. Nd1 {[%emt 0:00:08]} Nc4 {[%emt 0:00:43]} 43. Ra2 {[%emt 0:00:05]} Nc5 {[%emt 0:03:33]} 44. Rb4 {[%emt 0:00:49]} h5 {[%emt 0:00:13]} 45. g4 {[%emt 0:02:01]} hxg4 {[%emt 0:04:56]} 46. hxg4 {[%emt 0:01:36]} Kd6 {[%emt 0:00:03]} 47. Kg3 {[%emt 0:00:36]} Kc7 {[%emt 0:01:29]} 48. Rh2 {[%emt 0:08:28]} Rxa4 {[%emt 0:02:57]} 49. Rxa4 {[%emt 0:00:08]} Nxa4 {[%emt 0:00:04]} 50. f5 {[%emt 0:01:37]} gxf5 {[%emt 0:02:22]} 51. gxf5 {[%emt 0:00:01]} Nc5 {[%emt 0:01:25]} 52. Kg4 {[%emt 0:03:02]} Kd7 {[%emt 0:00:17]} 53. Kg5 {[%emt 0:00:22]} Ke7 {[%emt 0:00:49]} 54. Rh8 {[%emt 0:00:23]} Nd6 {[%emt 0:01:03]} 55. Nc3 {[%emt 0:01:19]} Bc4 {[%emt 0:01:09]} 56. Ra8 {[%emt 0:01:48]} f6+ {[%emt 0:01:41]} 57. Kf4 {[%emt 0:00:27]} Nd3+ {[%emt 0:00:18]} 58. Kg4 {[%emt 0:00:01]} Ne5+ {[%emt 0:04:24]} 59. Kf4 {[%emt 0:00:29]} Nd3+ {[%emt 0:00:11]} 60. Kg4 {[%emt 0:00:04]} Ne5+ {[%emt 0:00:05]} 61. Kf4 {[%emt 0:00:06]} 1/2-1/2

[Event "Biel Master Tournament 2019"]
[Site "Biel"]
[Date "2019.07.28"]
[Round "6.20"]
[White "Haimovich, Tal"]
[Black "Stany, G.A."]
[Result "1/2-1/2"]
[ECO "B49"]
[WhiteElo "2379"]
[BlackElo "2525"]
[Annotator "ChessBase"]
[PlyCount "127"]
[EventDate "2019.07.20"]
[EventType "swiss"]
[EventCountry "SUI"]
[SourceTitle "playchess.com"]
[Source "ChessBase"]
[SourceQuality "1"]
[TimeControl "40/5400+30:1800+30"]

1. e4 {[%emt 0:00:00]} c5 {[%emt 0:00:00]} 2. Nf3 {[%emt 0:00:00]} e6 {[%emt 0:00:00]} 3. d4 {[%emt 0:00:00]} cxd4 {[%emt 0:00:00]} 4. Nxd4 {[%emt 0:00:00]} Nc6 {[%emt 0:00:00]} 5. Nc3 {[%emt 0:00:00]} Qc7 {[%emt 0:00:00]} 6. Be2 {[%emt 0:00:07]} a6 {[%emt 0:00:18]} 7. O-O {[%emt 0:00:12]} Nf6 {[%emt 0:00:07]} 8. Be3 {[%emt 0:00:08]} Bb4 {[%emt 0:03:55]} 9. Nxc6 {[%emt 0:00:21]} bxc6 {[%emt 0:01:07]} 10. Qd4 {[%emt 0:00:08]} c5 {[%emt 0:16:24]} 11. Qc4 {[%emt 0:00:39]} Bb7 {[%emt 0:00:04]} 12. a3 {[%emt 0:00:06]} d5 {[%emt 0:11:53]} 13. exd5 {[%emt 0:00:10]} exd5 {[%emt 0:00:05]} 14. Qf4 {[%emt 0:00:04]} Qxf4 {[%emt 0:01:55]} 15. Bxf4 {[%emt 0:00:04]} Ba5 {[%emt 0:10:49]} 16. Bf3 {[%emt 0:15:03]} Bc6 {[%emt 0:11:04]} 17. Bd6 {[%emt 0:15:09]} Bb6 {[%emt 0:02:41]} 18. Be5 {[%emt 0:01:59]} Ne4 {[%emt 0:05:22]} 19. Bxg7 {[%emt 0:07:12]} Rg8 {[%emt 0:00:17]} 20. Bxe4 {[%emt 0:08:05]} dxe4 {[%emt 0:00:30]} 21. Bh6 {[%emt 0:01:10]} O-O-O {[%emt 0:02:54]} 22. Be3 {[%emt 0:04:28]} Ba5 {[%emt 0:04:34]} 23. Rfb1 {[%emt 0:16:04]} c4 {[%emt 0:08:37]} 24. Ne2 {[%emt 0:02:36]} Bc7 {[%emt 0:02:01]} 25. Rd1 {[%emt 0:02:22]} f5 {[%emt 0:01:18]} 26. g3 {[%emt 0:06:24]} Be5 {[%emt 0:01:52]} 27. Bd4 {[%emt 0:02:12]} Bc7 {[%emt 0:00:06]} 28. Be3 {[%emt 0:08:16]} Be5 {[%emt 0:00:35]} 29. Rxd8+ {[%emt 0:01:48]} Rxd8 {[%emt 0:02:32]} 30. c3 {[%emt 0:00:13]} Be8 {[%emt 0:01:46]} 31. Bd4 {[%emt 0:00:39]} Bc7 {[%emt 0:00:33]} 32. Kf1 {[%emt 0:01:07]} Bh5 {[%emt 0:00:45]} 33. Ke1 {[%emt 0:00:42]} Kb7 {[%emt 0:01:00]} 34. Rd1 {[%emt 0:00:43]} Kc6 {[%emt 0:02:02]} 35. Rd2 {[%emt 0:04:59]} Kb5 {[%emt 0:00:28]} 36. Nc1 {[%emt 0:00:13]} Ka4 {[%emt 0:05:41]} 37. Be3 {[%emt 0:00:40]} Bf3 {[%emt 0:01:41]} 38. Rd4 {[%emt 0:02:11]} Rxd4 {[%emt 0:00:04]} 39. Bxd4 {[%emt 0:00:32]} Bd8 {[%emt 0:00:28]} 40. Kd2 {[%emt 0:02:05]} Bg5+ {[%emt 0:00:08]} 41. Be3 {[%emt 0:30:11]} Be7 {[%emt 0:30:06]} 42. Kc2 {[%emt 0:00:00]} Bf8 {[%emt 0:00:00]} 43. Na2 {[%emt 0:00:00]} a5 {[%emt 0:00:00]} 44. Nc1 {[%emt 0:00:00]} Be7 {[%emt 0:00:00]} 45. Bb6 {[%emt 0:00:00]} Kb5 {[%emt 0:00:00]} 46. Ba7 {[%emt 0:00:00]} Ka4 {[%emt 0:00:00]} 47. Kd2 {[%emt 0:00:00]} Bg5+ {[%emt 0:00:00]} 48. Be3 {[%emt 0:00:00]} Be7 {[%emt 0:00:00]} 49. Bf4 {[%emt 0:00:00]} Bc5 {[%emt 0:00:00]} 50. Ke1 {[%emt 0:00:00]} Be7 {[%emt 0:00:00]} 51. Bh6 {[%emt 0:00:00]} Bd8 {[%emt 0:00:00]} 52. h4 {[%emt 0:00:00]} Be7 {[%emt 0:00:00]} 53. Kd2 {[%emt 0:02:06]} Bc5 {[%emt 0:00:00]} 54. Be3 {[%emt 0:00:03]} Bf8 {[%emt 0:00:00]} 55. Bf4 {[%emt 0:03:13]} Bc5 {[%emt 0:00:00]} 56. Ke1 {[%emt 0:00:07]} Bf8 {[%emt 0:00:00]} 57. Be3 {[%emt 0:00:18]} Be7 {[%emt 0:00:00]} 58. Bf4 {[%emt 0:02:26]} Bc5 {[%emt 0:00:00]} 59. Bh6 {[%emt 0:00:43]} Bb6 {[%emt 0:00:00]} 60. Be3 {[%emt 0:00:20]} Bc7 {[%emt 0:00:00]} 61. Kd2 {[%emt 0:00:19]} Bd6 {[%emt 0:00:00]} 62. Kc2 {[%emt 0:00:48]} Bf8 {[%emt 0:00:00]} 63. Kd2 {[%emt 0:01:23]} f4 {[%emt 0:00:09]} 64. Bb6 {[%emt 0:00:04]} 1/2-1/2

[Event "Biel Master Tournament 2019"]
[Site "Biel"]
[Date "2019.07.29"]
[Round "7.1"]
[White "Erigaisi Arjun"]
[Black "Brkic, Ante"]
[Result "1/2-1/2"]
[ECO "E15"]
[WhiteElo "2531"]
[BlackElo "2573"]
[Annotator "ChessBase"]
[PlyCount "37"]
[EventDate "2019.07.20"]
[EventType "swiss"]
[EventCountry "SUI"]
[SourceTitle "playchess.com"]
[Source "ChessBase"]
[SourceQuality "1"]
[TimeControl "40/5400+30:1800+30"]

1. Nf3 {[%emt 0:00:03]} d5 {[%emt 0:00:00]} 2. d4 {[%emt 0:00:06]} Nf6 {[%emt 0:00:00]} 3. c4 {[%emt 0:00:06]} e6 {[%emt 0:00:00]} 4. g3 {[%emt 0:00:07]} Bb4+ {[%emt 0:00:12]} 5. Bd2 {[%emt 0:00:07]} Be7 {[%emt 0:00:03]} 6. Bg2 {[%emt 0:00:07]} O-O {[%emt 0:00:07]} 7. O-O {[%emt 0:00:06]} c6 {[%emt 0:00:13]} 8. Qc2 {[%emt 0:00:10]} Nbd7 {[%emt 0:00:15]} 9. Bf4 {[%emt 0:00:09]} b6 {[%emt 0:01:34]} 10. Rd1 {[%emt 0:00:08]} Ba6 {[%emt 0:00:49]} 11. b3 {[%emt 0:01:35]} Rc8 {[%emt 0:01:03]} 12. Nc3 {[%emt 0:00:59]} dxc4 {[%emt 0:02:48]} 13. e4 {[%emt 0:10:07]} b5 {[%emt 0:00:50]} 14. bxc4 {[%emt 0:03:20]} bxc4 {[%emt 0:00:06]} 15. Rab1 {[%emt 0:06:20]} Qa5 {[%emt 0:14:48]} 16. Bd2 {[%emt 0:01:47]} Qa3 {[%emt 0:07:11]} 17. Bc1 {[%emt 0:03:42]} Qa5 {[%emt 0:01:21]} 18. Bd2 {[%emt 0:00:45]} Qa3 {[%emt 0:00:16]} 19. Bc1 {[%emt 0:00:46]} 1/2-1/2